bitfinex-derivatives/quotes_SOLF0:USTF0_20251202
["timestamp","ask_amount","ask_price","bid_price","bid_amount"]
[1764708928904,3.17,138.82,138.72,0.04]
[1764708929205,3.17,138.82,138.71,6.4864]
[1764708929206,3.17,138.79,138.71,6.4864]
[1764708929389,3.17,138.77,138.71,0.04]
[1764708929808,0.04875258,138.75,138.71,0.04]
[1764708930010,0.04875258,138.75,138.74,0.04]
[1764708931995,3.21875258,138.75,138.71,6.5263]
[1764708932190,3.21875258,138.75,138.71,6.4863]
[1764708933101,3.21875258,138.75,138.71,6.5263]
[1764708933299,65.21875258,138.75,138.71,6.5263]
[1764708934010,3.17,138.74,138.71,6.4863]
[1764708939397,0.04875258,138.75,138.73,6.5453]
[1764708939797,0.04875258,138.75,138.73,6.4853]
[1764708940903,3.05875258,138.75,138.71,6.4861]
[1764708941811,3.05875258,138.75,138.72,6.486]
[1764708942613,3.05875258,138.75,138.7,6.5466]
[1764708942812,3.05875258,138.75,138.7,0.06]
[1764708943107,3.05875258,138.75,138.67,0.06]
[1764708943321,3.01,138.71,138.67,0.06]
[1764708943507,65.01,138.7,138.67,0.06]
[1764708944211,65.01,138.7,138.66,0.06]
[1764708944411,0.04606965,138.69,138.66,0.06]
[1764708945311,0.04606965,138.69,138.67,6.548]
[1764708945713,0.04606965,138.69,138.68,0.06]
[1764708946803,3.01,138.78,138.72,0.06]
[1764708947009,3.01,138.76,138.69,0.06]
[1764708947918,3.06084076,138.74,138.71,6.5331618]
[1764708948316,3.06084076,138.74,138.72,6.486]
[1764708948516,3.06084076,138.74,138.71,0.0467618]
[1764708950020,3.01,138.72,138.71,0.0467618]
[1764708954934,65.03,138.72,138.71,0.0467618]
[1764708956029,24.64,138.71,138.61,0.06]
[1764708956228,3.01,138.7,138.61,0.06]
[1764708956428,3.01,138.68,138.58,0.06]
[1764708957032,3.0597489,138.64,138.58,0.06]
[1764708957233,3.01,138.62,138.55,0.06]
[1764708957533,0.05141691,138.6,138.57,0.06]
[1764708957926,0.05141691,138.6,138.55,101.0153]
[1764708957927,0.05141691,138.6,138.58,6.5524]
[1764708962241,3.06141691,138.6,138.55,0.06]
[1764708962831,3.06141691,138.6,138.56,0.06]
[1764708963442,3.06141691,138.6,138.56,6.5533]
[1764708963841,3.06141691,138.6,138.56,0.06]
[1764708964639,0.05141691,138.6,138.56,0.06]
[1764708964830,0.05141691,138.6,138.58,6.5524]
[1764708966143,3.06141691,138.6,138.58,6.4924]
[1764708966341,3.06141691,138.6,138.52,101.0964]
[1764708966643,3.06141691,138.6,138.52,0.06]
[1764708966843,3.06141691,138.6,138.51,6.4954]
[1764708967042,62.04,138.61,138.51,6.5554]
[1764708967043,3.01,138.56,138.51,6.5554]
[1764708968040,3.01,138.56,138.51,0.06]
[1764708968245,3.01,138.56,138.52,6.4953]
[1764708968742,3.01,138.56,138.51,0.06]
[1764708969140,0.05458361,138.57,138.53,0.05]
[1764708969447,0.05458361,138.57,138.54,0.05]
[1764708969745,0.05458361,138.57,138.55,6.5438]
[1764708972344,0.05458361,138.57,138.55,0.05]
[1764708973048,57.31,138.62,138.58,6.5423]
[1764708974150,0.04728226,138.61,138.59,0.05441853]
[1764708974735,0.04728226,138.61,138.59,6.59631853]
[1764708974934,0.04728226,138.61,138.6,0.05]
[1764708975238,65.07,138.65,138.59,101.04041853]
[1764708975436,65.07,138.65,138.62,0.05]
[1764708975746,107.43099023,138.74,138.63,0.05]
[1764708975948,3.01,138.74,138.67,0.05]
[1764708976135,65.09,138.74,138.67,0.05]
[1764708976339,65.09,138.74,138.69,0.04705222]
[1764708976647,0.04748487,138.72,138.69,0.04705222]
[1764708977043,0.04748487,138.72,138.69,6.58435222]
[1764708977250,0.04748487,138.72,138.7,0.05]
[1764708977849,3.05748487,138.72,138.69,0.04705222]
[1764708980047,3.05748487,138.72,138.62,101.0134]
[1764708980246,3.01,138.72,138.62,101.0134]
[1764708980848,0.04743863,138.68,138.66,0.05181577]
[1764708981151,3.05743863,138.68,138.66,0.05181577]
[1764708982151,65.11743863,138.68,138.66,0.05181577]
[1764708982858,65.11743863,138.68,138.66,6.54041577]
[1764708984051,3.01,138.67,138.66,0.05181577]
[1764708985245,62.08743863,138.68,138.66,0.15181577]
[1764708985653,62.08743863,138.68,138.66,0.05181577]
[1764708986053,0.04743863,138.68,138.67,0.1]
[1764708988343,0.04743863,138.68,138.66,6.64051577]
[1764708989354,0.04743863,138.68,138.67,0.1]
[1764708989552,65.05,138.73,138.69,0.1]
[1764708989853,3.01,138.72,138.66,0.1]
[1764708990050,3.01,138.72,138.64,100.9474]
[1764708990256,3.01,138.71,138.63,0.1]
[1764708990759,3.01,138.67,138.66,0.04778222]
[1764708993055,0.052945,138.68,138.66,0.14778222]
[1764708993258,3.062945,138.68,138.66,6.53648222]
[1764708993451,3.062945,138.68,138.66,0.04778222]
[1764708997256,0.052945,138.68,138.66,6.53638222]
[1764708997461,0.052945,138.68,138.66,6.63638222]
[1764708998358,0.052945,138.68,138.67,0.1]
[1764708999161,0.052945,138.68,138.66,6.53638222]
[1764708999667,0.052945,138.68,138.66,0.04778222]
[1764709000359,0.052945,138.68,138.67,0.1]
[1764709000560,0.052945,138.68,138.66,6.53658222]
[1764709000759,0.052945,138.68,138.66,6.63658222]
[1764709001163,0.052945,138.68,138.67,0.1]
[1764709002766,100.8686,138.76,138.67,0.1]
[1764709002767,3.27,138.76,138.72,0.04]
[1764709003568,3.27,138.76,138.73,6.4854]
[1764709003758,3.31562236,138.76,138.73,6.54081372]
[1764709004567,3.31562236,138.76,138.74,6.4849]
[1764709004869,0.04562236,138.76,138.75,0.04]
[1764709005460,65.33,138.81,138.77,0.04]
[1764709005666,51.1141,138.81,138.79,0.04]
[1764709005972,28.2838,138.81,138.79,0.04]
[1764709006169,28.2838,138.81,138.8,0.04]
[1764709006970,28.2838,138.81,138.79,0.04858683]
[1764709007171,31.5538,138.81,138.79,0.04858683]
[1764709007573,3.27,138.8,138.79,0.04858683]
[1764709008476,3.27,138.8,138.75,6.4844]
[1764709009376,3.27,138.8,138.76,6.484]
[1764709009578,0.05156116,138.79,138.77,0.05233775]
[1764709009773,3.32156116,138.79,138.77,0.05233775]
[1764709011578,3.32156116,138.79,138.74,6.485]
[1764709011777,3.32156116,138.79,138.72,100.8931]
[1764709012473,3.32156116,138.79,138.74,0.05380336]
[1764709012673,3.32156116,138.79,138.75,6.4845]
[1764709014981,3.32156116,138.79,138.74,0.05380336]
[1764709015682,3.32156116,138.79,138.74,0.14380336]
[1764709016082,3.32156116,138.79,138.74,0.05380336]
[1764709019382,3.27,138.77,138.74,0.05380336]
[1764709019982,9.7539,138.77,138.74,0.05380336]
[1764709020286,3.27,138.77,138.68,0.09]
[1764709020487,3.27,138.77,138.66,100.9335]
[1764709020488,3.27,138.77,138.71,0.15]
[1764709020783,3.27,138.75,138.71,0.15]
[1764709021174,3.32247793,138.74,138.72,0.0460917]
[1764709021380,3.315781,138.74,138.72,0.0460917]
[1764709021581,65.335781,138.74,138.72,0.0460917]
[1764709021789,3.27,138.73,138.72,0.0460917]
[1764709023492,3.27,138.73,138.68,6.4878]
[1764709023988,3.27,138.73,138.68,6.6778]
[1764709024293,3.27,138.73,138.69,9.51296488]
[1764709024483,3.27,138.73,138.69,6.6774]
[1764709024685,65.335781,138.74,138.7,0.19]
[1764709024990,3.32354734,138.73,138.7,0.19]
[1764709025376,3.32354734,138.73,138.71,6.4864]
[1764709025876,3.32354734,138.73,138.69,6.4871]
[1764709026588,3.27,138.72,138.69,6.4871]
[1764709027083,62.07354734,138.73,138.7,6.6769]
[1764709027289,62.07354734,138.73,138.7,0.19]
[1764709027490,65.34354734,138.73,138.7,0.19]
[1764709027688,65.34354734,138.73,138.71,6.4864]
[1764709028280,65.34354734,138.73,138.7,0.19]
[1764709029576,2.98,138.72,138.66,7.28889314]
[1764709029781,62.07354734,138.73,138.67,0.2]
[1764709031084,65.05354734,138.73,138.68,0.2]
[1764709032490,65.05354734,138.73,138.7,6.4869]
[1764709032685,2.98,138.72,138.68,0.2]
[1764709032887,2.98,138.72,138.66,0.2]
[1764709033786,62.07354734,138.73,138.69,0.2]
[1764709033984,62.07354734,138.73,138.7,0.2]
[1764709035190,62.07354734,138.73,138.72,6.486]
[1764709035490,65.05354734,138.73,138.72,6.486]
[1764709036196,65.05354734,138.73,138.7,0.2]
[1764709036495,2.98,138.72,138.68,0.2]
[1764709036697,62.07354734,138.73,138.72,6.486]
[1764709037087,62.07354734,138.73,138.69,0.2]
[1764709037088,2.98,138.72,138.69,0.2]
[1764709037489,2.98,138.72,138.71,6.4865]
[1764709037690,65.05354734,138.73,138.71,6.4865]
[1764709038090,65.05354734,138.73,138.72,6.486]
[1764709039697,65.05354734,138.73,138.7,6.4867]
[1764709039883,2.98,138.72,138.68,101.1204]
[1764709040192,2.98,138.72,138.69,0.2]
[1764709040582,65.05354734,138.73,138.71,6.4865]
[1764709040785,62.07354734,138.73,138.69,0.2]
[1764709041189,62.07354734,138.73,138.72,6.686]
[1764709041593,62.07354734,138.73,138.72,6.486]
[1764709041787,62.07354734,138.73,138.69,0.2]
[1764709042389,0.05354734,138.73,138.71,6.486]
[1764709042589,0.05354734,138.73,138.69,0.2]
[1764709042988,3.03354734,138.73,138.68,0.2]
[1764709043998,3.03354734,138.73,138.7,6.4867]
[1764709046701,3.03354734,138.73,138.69,0.2]
[1764709047100,3.03354734,138.73,138.69,6.6874]
[1764709047402,3.03354734,138.73,138.66,0.2]
[1764709047594,2.98,138.72,138.66,0.2]
[1764709048191,4.97192942,138.73,138.68,0.2]
[1764709048503,3.03354734,138.73,138.68,0.2]
[1764709048904,3.03354734,138.73,138.65,0.2]
[1764709049197,2.98,138.71,138.65,0.2]
[1764709049401,3.03269771,138.69,138.65,0.2]
[1764709049602,3.03269771,138.69,138.63,4.72606149]
[1764709050001,3.03269771,138.69,138.63,4.92606149]
[1764709050195,3.03269771,138.69,138.65,6.689]
[1764709051998,3.03269771,138.69,138.65,0.2]
[1764709052193,2.98,138.68,138.63,4.92606149]
[1764709052398,2.98,138.68,138.64,0.2]
[1764709053709,2.98,138.68,138.64,6.6896]
[1764709054112,2.98,138.68,138.63,6.4901]
[1764709054311,3.25669467,138.67,138.63,6.6901]
[1764709054704,3.25669467,138.67,138.61,6.4908]
[1764709054907,3.25669467,138.67,138.6,0.2]
[1764709055707,3.25669467,138.67,138.62,6.6906]
[1764709056408,3.25669467,138.67,138.63,0.2]
[1764709060710,3.25669467,138.67,138.63,6.6901]
[1764709063518,3.25669467,138.67,138.64,6.4897]
[1764709067423,3.25669467,138.67,138.66,0.2]
[1764709067424,0.04669467,138.67,138.66,0.2]
[1764709068324,0.04669467,138.67,138.66,6.6888]
[1764709068528,3.09,138.73,138.67,0.2]
[1764709068828,3.09,138.73,138.7,6.4869]
[1764709069124,3.09,138.73,138.7,6.6869]
[1764709069323,3.09,138.75,138.71,0.2]
[1764709069523,3.14279742,138.74,138.72,0.04669467]
[1764709076730,9.62789742,138.74,138.72,0.04669467]
[1764709076930,3.09,138.73,138.72,0.04669467]
[1764709077332,3.09,138.7,138.64,0.2]
[1764709077629,3.09,138.7,138.62,4.72606149]
[1764709077630,3.09,138.7,138.66,0.2]
[1764709078225,0.04974569,138.69,138.66,0.2]
[1764709078425,0.04974569,138.69,138.66,6.6888]
[1764709078826,3.13974569,138.69,138.66,0.2]
[1764709080432,0.04974569,138.69,138.65,4.72606149]
[1764709080634,3.09,138.74,138.69,0.2]
[1764709081533,0.04593398,138.73,138.7,0.24974569]
[1764709081828,0.04593398,138.73,138.71,0.2]
[1764709082029,3.13593398,138.73,138.7,0.04974569]
[1764709082227,3.13593398,138.73,138.7,0.24974569]
[1764709083130,3.13593398,138.73,138.7,0.04974569]
[1764709083834,3.09,138.71,138.64,0.2]
[1764709084639,3.09,138.71,138.66,6.7388]
[1764709085037,3.1367922,138.7,138.66,6.7388]
[1764709085632,0.0467922,138.7,138.68,0.25]
[1764709086036,3.1367922,138.7,138.64,0.25]
[1764709086240,3.09,138.7,138.64,6.7396]
[1764709086546,3.13863812,138.68,138.64,0.25]
[1764709087439,3.13863812,138.68,138.6,100.9781]
[1764709087638,3.13863812,138.68,138.61,0.25]
[1764709088639,3.13863812,138.68,138.62,6.4904]
[1764709089140,3.13863812,138.68,138.61,0.25]
[1764709089141,2.98,138.66,138.61,0.25]
[1764709089338,2.98,138.64,138.6,6.7413]
[1764709089538,3.02595827,138.65,138.61,0.25]
[1764709090739,3.02595827,138.65,138.61,6.741]
[1764709091133,0.04595827,138.65,138.63,0.25]
[1764709091329,0.04595827,138.65,138.63,6.7401]
[1764709094638,3.02595827,138.65,138.62,0.25]
[1764709094846,3.02595827,138.65,138.61,6.7408]
[1764709095341,3.02595827,138.65,138.63,0.25]
[1764709095342,0.04595827,138.65,138.63,0.25]
[1764709096438,0.04595827,138.65,138.63,6.7401]
[1764709096635,62.0,138.7,138.64,0.25]
[1764709096835,62.0,138.7,138.65,0.25]
[1764709097032,64.98,138.7,138.67,6.4882]
[1764709097236,64.98,138.7,138.67,6.7382]
[1764709097637,0.05516736,138.7,138.68,6.7377]
[1764709097837,0.05516736,138.7,138.69,0.25]
[1764709100037,2.98,138.73,138.7,6.7369]
[1764709100441,2.98,138.75,138.71,0.25]
[1764709100744,2.98,138.75,138.72,6.4857]
[1764709100944,3.03192767,138.75,138.72,6.53714565]
[1764709101341,0.05192767,138.75,138.73,6.4854]
[1764709101746,3.03192767,138.75,138.73,6.4854]
[1764709102044,3.03192767,138.75,138.72,0.30144565]
[1764709102750,0.05192767,138.75,138.72,0.30144565]
[1764709103745,0.05192767,138.75,138.74,0.25]
[1764709104346,3.03192767,138.75,138.73,6.4854]
[1764709104847,0.05192767,138.75,138.73,6.4854]
[1764709105141,3.03192767,138.75,138.73,6.4854]
[1764709105749,0.05192767,138.75,138.74,0.25]
[1764709106552,0.05192767,138.75,138.74,3.27264363]
[1764709110256,2.98,138.74,138.72,0.05144565]
[1764709112153,0.05192767,138.75,138.72,0.05144565]
[1764709112353,3.03192767,138.75,138.72,0.05144565]
[1764709113763,0.05192767,138.75,138.74,0.25]
[1764709113966,3.03192767,138.75,138.72,0.05144565]
[1764709114559,3.05,138.74,138.72,0.05144565]
[1764709114853,3.05,138.74,138.68,3.02264363]
[1764709115958,3.05,138.74,138.7,0.04885997]
[1764709117758,6.07264363,138.71,138.7,0.04885997]
[1764709119556,3.07,138.7,138.62,3.02264363]
[1764709119751,112.07120456,138.74,138.61,0.3]
[1764709119752,3.07,138.68,138.61,0.3]
[1764709120552,3.11885337,138.66,138.62,6.4906]
[1764709120761,3.11885337,138.66,138.62,6.7906]
[1764709122367,3.11885337,138.66,138.63,6.4901]
[1764709122866,3.11885337,138.66,138.62,3.02264363]
[1764709123654,0.04885337,138.66,138.63,0.3]
[1764709123857,3.11885337,138.66,138.63,6.7901]
[1764709124067,3.11885337,138.66,138.63,6.4901]
[1764709124264,3.11885337,138.66,138.62,3.32264363]
[1764709124565,3.11885337,138.66,138.62,9.81324363]
[1764709124768,3.11885337,138.66,138.63,0.3]
[1764709126663,3.11885337,138.66,138.62,6.4906]
[1764709126869,3.11885337,138.66,138.62,9.81324363]
[1764709127168,3.11885337,138.66,138.62,9.51324363]
[1764709127566,3.11885337,138.66,138.62,9.81324363]
[1764709128366,3.11885337,138.66,138.62,6.4906]
[1764709128774,3.11885337,138.66,138.62,9.81324363]
[1764709128974,3.11885337,138.66,138.63,6.4901]
[1764709129472,0.04885337,138.66,138.64,6.7897]
[1764709129669,0.04885337,138.66,138.65,0.3]
[1764709130265,3.07,138.69,138.66,6.7887]
[1764709130468,2.8161409,138.69,138.66,6.7887]
[1764709130776,6.4851,138.74,138.66,0.3]
[1764709130975,3.02264363,138.74,138.67,6.4883]
[1764709131367,0.04978636,138.72,138.69,0.04967338]
[1764709132368,3.11978636,138.72,138.69,0.59967338]
[1764709132769,3.11978636,138.72,138.69,0.04967338]
[1764709132975,3.11978636,138.72,138.7,6.4869]
[1764709133565,3.11978636,138.72,138.69,0.04967338]
[1764709134281,3.11978636,138.72,138.69,6.53697338]
[1764709136382,3.11978636,138.72,138.7,6.4869]
[1764709137475,0.04978636,138.72,138.71,0.55]
[1764709139784,11.18630456,138.84,138.79,100.8416]
[1764709139989,3.07,138.85,138.81,3.02264363]
[1764709140286,1.25400886,138.86,138.83,3.02264363]
[1764709140492,3.07,138.86,138.83,3.02264363]
[1764709140875,3.12211026,138.86,138.83,9.55030703]
[1764709141184,3.07,138.83,138.72,0.55]
[1764709141484,3.02264363,138.77,138.69,0.55]
[1764709141685,3.02264363,138.77,138.66,100.9345]
[1764709141686,6.09264363,138.76,138.66,101.4845]
[1764709141983,3.07,138.73,138.66,3.57264363]
[1764709142186,3.07,138.7,138.68,0.05249634]
[1764709143384,3.07,138.69,138.6,0.6]
[1764709143580,3.07,138.69,138.57,0.6]
[1764709143779,65.13,138.68,138.59,6.4919]
[1764709143990,3.07,138.67,138.59,6.4919]
[1764709144186,3.07,138.67,138.57,0.6]
[1764709144390,3.07,138.62,138.54,0.6]
[1764709144795,0.04895989,138.59,138.56,6.4932]
[1764709145186,3.11895989,138.59,138.53,7.09416773]
[1764709145388,3.11895989,138.59,138.52,0.6]
[1764709145787,3.11895989,138.59,138.52,108.1349]
[1764709146096,3.11895989,138.59,138.52,0.6]
[1764709146884,3.11895989,138.59,138.49,7.69416773]
[1764709147082,0.04694896,138.55,138.49,7.69416773]
[1764709147284,3.11694896,138.55,138.49,0.6]
[1764709147488,3.11694896,138.55,138.46,7.09416773]
[1764709147489,3.11694896,138.55,138.46,0.6]
[1764709147688,3.07,138.55,138.48,108.76296773]
[1764709147894,3.07,138.59,138.49,0.6]
[1764709148192,3.12078372,138.53,138.49,0.6]
[1764709148395,3.12078372,138.53,138.46,7.09416773]
[1764709151294,3.12078372,138.53,138.45,3.24679905]
[1764709151902,3.26,138.52,138.47,7.09416773]
[1764709152288,3.26,138.52,138.45,3.24679905]
[1764709152688,3.26,138.52,138.47,7.70416773]
[1764709152689,0.04826329,138.5,138.47,7.70416773]
[1764709153397,62.18,138.54,138.48,0.61]
[1764709153695,3.26,138.6,138.53,7.09416773]
[1764709153897,3.26,138.6,138.53,7.70416773]
[1764709154196,3.26,138.63,138.56,108.71406773]
[1764709154403,86.56,138.65,138.62,7.09416773]
[1764709154592,86.61302152,138.65,138.62,7.14243102]
[1764709155395,0.05302152,138.65,138.62,7.14243102]
[1764709155800,62.22,138.66,138.62,7.14243102]
[1764709156201,62.22,138.66,138.62,0.04826329]
[1764709156505,3.26,138.65,138.63,7.09416773]
[1764709156902,3.30896023,138.65,138.63,7.09416773]
[1764709157097,3.30896023,138.65,138.57,101.0002]
[1764709157301,3.30896023,138.65,138.51,9.84216888]
[1764709157302,2.7,138.64,138.56,7.09416773]
[1764709157800,2.7,138.64,138.59,7.09416773]
[1764709158197,62.34,138.67,138.62,3.14]
[1764709158399,62.34,138.67,138.64,7.09416773]
[1764709158599,2.7,138.73,138.65,3.14]
[1764709158805,2.7,138.73,138.67,7.09416773]
[1764709159398,2.75370949,138.71,138.69,0.05328315]
[1764709159595,2.7,138.75,138.7,7.09416773]
[1764709159807,2.7,138.76,138.73,7.09416773]
[1764709160304,62.36,138.77,138.73,7.09416773]
[1764709160500,0.04932784,138.76,138.74,0.05327734]
[1764709161696,0.04932784,138.76,138.74,3.19327734]
[1764709161895,2.7,138.81,138.74,3.19327734]
[1764709162096,2.7,138.8,138.74,0.05327734]
[1764709162300,2.7,138.77,138.74,0.05327734]
[1764709162497,2.7,138.74,138.67,7.09416773]
[1764709163411,0.04962914,138.72,138.69,0.05468533]
[1764709163802,0.04962914,138.72,138.69,3.19468533]
[1764709164404,0.04962914,138.72,138.69,0.05468533]
[1764709167210,0.04962914,138.72,138.69,3.19468533]
[1764709167410,0.04962914,138.72,138.69,0.05468533]
[1764709167606,0.04962914,138.72,138.69,3.19468533]
[1764709170108,2.7,138.81,138.71,3.14]
[1764709170304,2.75,138.84,138.74,3.14]
[1764709171412,0.05437296,138.8,138.78,0.05496828]
[1764709175111,0.05437296,138.8,138.78,3.03496828]
[1764709175813,2.73,138.87,138.78,3.03496828]
[1764709176017,2.73,138.87,138.78,2.98]
[1764709176316,2.73,138.85,138.78,2.98]
[1764709176811,100.7888,138.87,138.73,12.06875067]
[1764709176812,2.77922684,138.83,138.8,0.04936508]
[1764709177012,2.77922684,138.83,138.7,12.06875067]
[1764709177211,2.77922684,138.83,138.72,2.98]
[1764709177212,2.73,138.83,138.72,2.98]
[1764709177414,2.73,138.81,138.72,2.98]
[1764709178011,2.73,138.74,138.66,2.98]
[1764709178213,0.05406811,138.71,138.7,2.98]
[1764709178409,62.36,138.78,138.7,2.98]
[1764709178410,2.73,138.8,138.7,2.98]
[1764709178611,2.73,138.8,138.71,2.98]
[1764709179010,2.73,138.8,138.73,9.6653]
[1764709179213,2.78,138.83,138.74,3.18]
[1764709179407,2.8344042,138.8,138.77,0.04734034]
[1764709179808,2.8344042,138.8,138.77,3.22734034]
[1764709179809,0.0544042,138.8,138.77,3.22734034]
[1764709180016,2.8344042,138.8,138.77,0.04734034]
[1764709181315,0.0544042,138.8,138.77,3.22734034]
[1764709181909,0.0544042,138.8,138.79,3.18]
[1764709182518,62.42,138.85,138.79,3.18]
[1764709182815,2.78,138.87,138.8,3.18]
[1764709183015,1.2537378,138.88,138.8,3.18]
[1764709183016,2.78,138.9,138.81,3.18]
[1764709183317,12.06875067,138.93,138.81,3.18]
[1764709183318,2.78,138.88,138.81,3.18]
[1764709183707,0.0520681,138.86,138.83,3.22551132]
[1764709185731,1.25339912,138.93,138.86,3.18]
[1764709185913,2.84,138.97,138.86,3.18]
[1764709186117,1.25330884,138.95,138.86,3.18]
[1764709186312,1.25330884,138.95,138.88,3.18]
[1764709186728,1.25330884,138.95,138.9,0.05214119]
[1764709186729,2.89494609,138.93,138.9,0.05214119]
[1764709186914,0.05494609,138.93,138.9,3.23214119]
[1764709187921,2.84,139.0,138.91,3.18]
[1764709188219,2.84,139.0,138.93,3.18]
[1764709189022,2.89,138.97,138.95,0.05161734]
[1764709189222,2.93540792,138.97,138.95,0.05306977]
[1764709189426,2.89,138.95,138.87,3.18]
[1764709189627,2.89,138.94,138.87,3.18]
[1764709190424,0.04699013,138.92,138.89,3.23481744]
[1764709193717,0.04699013,138.92,138.89,104.00241744]
[1764709193919,2.89,138.99,138.9,3.18]
[1764709194127,1.25267724,139.01,138.9,3.18]
[1764709194330,4.18267724,139.01,138.9,3.18]
[1764709194827,0.04604125,138.97,138.94,0.05450709]
[1764709195026,0.04604125,138.97,138.94,3.23450709]
[1764709195226,2.97604125,138.97,138.94,0.05450709]
[1764709195428,2.97604125,138.97,138.89,3.18]
[1764709195429,2.93,138.95,138.89,3.18]
[1764709195627,2.93,138.95,138.85,3.18]
[1764709195823,2.93,138.98,138.85,3.18]
[1764709196024,2.93,138.98,138.88,3.18]
[1764709196322,103.6634,138.95,138.85,3.18]
[1764709196529,2.93,138.9,138.89,0.04963858]
[1764709197528,4.37,138.9,138.81,9.6617]
[1764709197834,2.93,138.9,138.82,3.18]
[1764709198019,2.93,138.9,138.83,6.4807]
[1764709198218,2.93,138.91,138.84,3.18]
[1764709198429,2.93,138.91,138.74,403.508]
[1764709198430,2.93,138.88,138.8,3.18]
[1764709198627,100.7737,138.89,138.83,0.04789606]
[1764709198628,2.93,138.84,138.83,0.04789606]
[1764709198826,2.93,138.84,138.82,0.05021964]
[1764709199031,2.98225864,138.84,138.82,0.04558536]
[1764709199728,0.05225864,138.84,138.82,3.22558536]
[1764709199935,0.05225864,138.84,138.82,0.04558536]
[1764709200233,0.05225864,138.84,138.82,3.22558536]
[1764709200724,0.05225864,138.84,138.82,0.04558536]
[1764709201129,2.98225864,138.84,138.82,0.04558536]
[1764709201328,2.98225864,138.84,138.75,3.18]
[1764709201329,2.93,138.83,138.75,3.18]
[1764709202430,0.04774779,138.8,138.78,3.23522795]
[1764709202630,2.98,138.86,138.78,3.23522795]
[1764709202843,2.98,138.86,138.78,3.18]
[1764709203537,0.05040752,138.83,138.81,0.04682431]
[1764709204240,3.03040752,138.83,138.81,0.04682431]
[1764709206727,2.98,138.81,138.71,3.18]
[1764709206924,2.98,138.79,138.66,3.18]
[1764709207135,2.98,138.79,138.68,3.18]
[1764709207339,2.98,138.79,138.69,6.4872]
[1764709207544,2.98,138.79,138.69,3.18]
[1764709207840,2.98,138.74,138.73,0.04739921]
[1764709208042,2.98,138.74,138.72,0.05324995]
[1764709208236,2.98,138.73,138.72,0.05071737]
[1764709208545,62.71207037,138.74,138.72,0.05071737]
[1764709208735,65.69207037,138.74,138.72,0.05071737]
[1764709209542,2.96,138.73,138.63,3.05]
[1764709209934,2.96,138.73,138.65,3.05]
[1764709210136,65.64,138.77,138.68,3.05]
[1764709210331,2.96,138.76,138.68,3.05]
[1764709210534,2.96,138.76,138.64,100.9492]
[1764709210535,2.96,138.72,138.71,0.0520704]
[1764709210739,2.96,138.72,138.64,3.05]
[1764709210941,2.96,138.72,138.65,3.05]
[1764709211840,0.05221946,138.7,138.67,3.09732445]
[1764709212337,0.05221946,138.7,138.67,9.58552445]
[1764709213241,0.05221946,138.7,138.69,3.05]
[1764709213545,0.05221946,138.7,138.67,0.04732445]
[1764709214242,0.05221946,138.7,138.67,6.53542445]
[1764709214541,0.05221946,138.7,138.67,3.09732445]
[1764709215339,3.01221946,138.7,138.67,0.04732445]
[1764709216044,3.01221946,138.7,138.6,104.0298]
[1764709216241,2.96,138.7,138.6,104.0298]
[1764709216636,2.96,138.7,138.63,6.4901]
[1764709217040,3.0065967,138.68,138.65,0.05308026]
[1764709220639,2.96,138.67,138.65,0.05308026]
[1764709221335,2.96,138.66,138.59,3.05]
[1764709222447,0.04772703,138.64,138.61,0.05363038]
[1764709222738,122.5352,138.71,138.62,3.05]
[1764709222739,2.96,138.71,138.62,3.05]
[1764709223142,6.4866,138.71,138.62,3.05]